bitfinex/quotes_BTCUSD_20220226
["timestamp","ask_amount","ask_price","bid_price","bid_amount"]
[1645836793063,0.19340911,39825.0,39819.0,0.35]
[1645836793263,0.19340911,39825.0,39820.0,0.00023099]
[1645836794668,0.19370116,39825.0,39820.0,0.00023099]
[1645836795205,0.24370116,39825.0,39820.0,0.00023099]
[1645836795805,0.00029205,39824.0,39820.0,0.00023099]
[1645836796607,0.0005841,39824.0,39820.0,0.00023099]
[1645836796807,0.00029205,39824.0,39820.0,0.00023099]
[1645836797409,0.78637836,39824.0,39820.0,0.00023099]
[1645836797607,0.00569949,39823.0,39820.0,0.00023099]
[1645836797808,0.0463,39822.0,39820.0,0.00023099]
[1645836798010,0.38125742,39822.0,39820.0,0.00023099]
[1645836798207,0.00569949,39821.0,39820.0,0.00023099]
[1645836798408,0.05199949,39821.0,39814.0,0.0003994]
[1645836798659,0.20447199,39815.0,39814.0,0.0003994]
[1645836800862,0.16447199,39815.0,39814.0,0.0003994]
[1645836801468,0.0463,39817.0,39814.0,0.0003994]
[1645836802714,0.06303692,39823.0,39814.0,0.0003994]
[1645836802715,0.00019592,39823.0,39814.0,0.0003994]
[1645836802909,0.00019592,39823.0,39814.0,0.30063085]
[1645836802910,0.0002487,39823.0,39814.0,0.30063085]
[1645836803311,0.0002487,39823.0,39814.0,0.29963085]
[1645836803910,0.00024872,39823.0,39816.0,0.15]
[1645836804109,0.00024872,39823.0,39817.0,0.3]
[1645836804809,0.18855423,39825.0,39815.0,0.3]
[1645836805010,7.473e-05,39823.0,39811.0,0.4499]
[1645836805213,7.473e-05,39823.0,39810.0,0.3]
[1645836805411,0.43712915,39822.0,39810.0,0.3]
[1645836805814,0.39082915,39821.0,39810.0,0.3]
[1645836806011,0.19049615,39818.0,39810.0,0.3]
[1645836806459,0.19049615,39818.0,39809.0,0.15]
[1645836806659,0.19049615,39818.0,39810.0,0.3]
[1645836806862,0.0463,39820.0,39809.0,0.2]
[1645836807159,0.0463,39820.0,39810.0,0.3]
[1645836807358,0.0463,39820.0,39811.0,0.2]
[1645836807659,0.0463,39820.0,39812.0,0.3]
[1645836807858,0.0463,39820.0,39810.0,0.3]
[1645836808361,0.25814794,39820.0,39810.0,0.3]
[1645836808560,0.0463,39820.0,39810.0,0.3]
[1645836809159,0.25814794,39820.0,39810.0,0.3]
[1645836809361,0.0463,39820.0,39810.0,0.3]
[1645836810006,0.17332224,39815.0,39810.0,0.2]
[1645836810411,0.17332224,39815.0,39809.0,0.2]
[1645836810805,0.17332224,39815.0,39810.0,0.3]
[1645836811008,0.17175612,39815.0,39809.0,0.2]
[1645836811206,0.00029717,39814.0,39809.0,0.2]
[1645836811606,0.00029717,39814.0,39810.0,0.3]
[1645836812009,0.21184794,39819.0,39810.0,0.3]
[1645836812207,0.21184794,39819.0,39807.0,0.2]
[1645836812208,0.21184794,39818.0,39808.0,0.3]
[1645836812409,0.00029717,39814.0,39808.0,0.3]
[1645836812809,0.21109916,39814.0,39808.0,0.3]
[1645836813209,0.21080199,39814.0,39808.0,0.3]
[1645836813410,0.21080199,39814.0,39808.0,0.2958695]
[1645836813411,8.93e-05,39813.0,39808.0,0.2958695]
[1645836814465,0.21184794,39815.0,39811.0,0.2]
[1645836814666,0.21184794,39815.0,39812.0,0.3]
[1645836814867,0.21184794,39815.0,39811.0,0.2]
[1645836815167,0.0463,39820.0,39811.0,0.2]
[1645836815168,0.21184794,39816.0,39811.0,0.2]
[1645836815367,0.21871711,39814.0,39811.0,0.2]
[1645836815567,0.21184794,39815.0,39811.0,0.2]
[1645836815767,0.21184794,39814.0,39806.0,0.00044549]
[1645836815968,0.00024821,39815.0,39809.0,0.2]
[1645836816171,0.00024821,39815.0,39810.0,0.3]
[1645836816569,0.00024821,39815.0,39813.0,0.2]
[1645836816771,0.31777191,39822.0,39813.0,0.2]
[1645836816772,0.21184794,39818.0,39814.0,0.3]
[1645836817518,0.26480992,39820.0,39817.0,0.2]
[1645836817519,0.21184794,39820.0,39817.0,0.2]
[1645836817717,0.21184794,39821.0,39819.0,0.2]
[1645836818214,0.21184794,39822.0,39819.0,0.2]
[1645836818415,7.66e-05,39820.0,39819.0,0.2]
[1645836819015,7.66e-05,39820.0,39819.0,0.5]
[1645836819216,0.21184794,39821.0,39819.0,0.2]
[1645836819618,0.21184794,39820.0,39819.0,0.2]
[1645836820120,0.23069901,39821.0,39819.0,0.2]
[1645836820323,0.21225799,39820.0,39819.0,0.2]
[1645836820618,0.49543233,39821.0,39819.0,0.2]
[1645836820817,0.49568765,39821.0,39819.0,0.2]
[1645836821019,0.23087773,39821.0,39819.0,0.2]
[1645836821276,0.44313721,39821.0,39813.0,0.2]
[1645836821480,0.44313721,39821.0,39814.0,0.3]
[1645836821481,0.21225948,39819.0,39814.0,0.3]
[1645836821677,0.21225948,39818.0,39814.0,0.3]
[1645836821877,0.21225948,39818.0,39813.0,0.2]
[1645836823078,0.21225948,39819.0,39815.0,0.2]
[1645836823278,0.00027418,39817.0,39815.0,0.2]
[1645836823878,0.00027418,39817.0,39816.0,0.3]
[1645836824081,0.21225948,39821.0,39816.0,0.3]
[1645836824280,0.00027418,39818.0,39816.0,0.3]
[1645836824479,0.00027418,39818.0,39817.0,0.375395]
[1645836824679,0.00027418,39818.0,39817.0,0.2]
[1645836824913,0.00327418,39818.0,39817.0,0.2]
[1645836825314,0.003,39818.0,39817.0,0.2]
[1645836826118,0.39037439,39819.0,39810.0,0.21004]
[1645836826119,0.17811491,39819.0,39810.0,0.21004]
[1645836826315,0.21226775,39817.0,39810.0,0.21004]
[1645836826515,0.21226775,39814.0,39810.0,0.2]
[1645836826720,0.21226775,39813.0,39810.0,0.2]
[1645836826914,0.22784933,39812.0,39810.0,0.2]
[1645836827117,0.22784933,39812.0,39806.0,0.00043294]
[1645836827514,0.0463,39811.0,39806.0,0.00043294]
[1645836827716,0.0463,39811.0,39804.0,0.2]
[1645836827717,0.25856775,39811.0,39804.0,0.2]
[1645836827915,0.25882004,39811.0,39806.0,0.00043293]
[1645836828515,0.21226775,39810.0,39806.0,0.00043293]
[1645836828767,0.0463,39809.0,39806.0,0.00043293]
[1645836828965,0.0463,39809.0,39804.0,0.2]
[1645836829165,0.0463,39809.0,39806.0,0.00044792]
[1645836830272,0.0463,39809.0,39806.0,0.00044793]
[1645836831069,0.0473,39809.0,39806.0,0.00044793]
[1645836831371,0.0473,39809.0,39796.0,0.00179214]
[1645836831372,0.0473,39809.0,39796.0,0.3]
[1645836831569,0.0473,39809.0,39806.0,0.00044793]
[1645836832171,0.0463,39809.0,39806.0,0.00044793]
[1645836832409,0.0463,39809.0,39806.0,0.2]
[1645836832612,0.0463,39809.0,39806.0,0.20044775]
[1645836833609,0.0463,39809.0,39802.0,0.2]
[1645836833811,0.0463,39809.0,39806.0,0.00044775]
[1645836834911,0.0463,39809.0,39803.0,0.3]
[1645836835110,0.0463,39809.0,39806.0,0.00044775]
[1645836836167,0.0463,39809.0,39802.0,0.2]
[1645836836369,0.0463,39809.0,39806.0,0.00043365]
[1645836836568,0.25,39808.0,39803.0,0.19144214]
[1645836836772,0.00025538,39810.0,39802.0,0.2]
[1645836836969,0.001,39809.0,39802.0,0.2]
[1645836837271,0.21326775,39809.0,39802.0,0.2]
[1645836837668,0.20742274,39806.0,39800.0,0.2]
[1645836837867,0.20742274,39806.0,39801.0,0.3]
[1645836838268,0.001,39809.0,39801.0,0.3]
[1645836838871,0.21226775,39810.0,39800.0,0.2]
[1645836839073,0.21226775,39808.0,39800.0,0.2]
[1645836839273,0.21226775,39808.0,39795.0,0.2465]
[1645836839274,0.21226775,39806.0,39795.0,0.2465]
[1645836839474,0.0473,39809.0,39793.0,0.7896]
[1645836839475,0.21226775,39805.0,39793.0,0.7896]
[1645836839672,0.21226775,39805.0,39791.0,0.0999]
[1645836839673,0.25856775,39804.0,39791.0,0.0999]
[1645836839930,0.25856775,39804.0,39790.0,0.2]
[1645836839931,0.2237472,39800.0,39799.0,0.00046055]
[1645836840126,0.2700472,39800.0,39799.0,0.00046055]
[1645836840330,0.2700472,39800.0,39786.0,0.3]
[1645836840528,0.2700472,39800.0,39786.0,0.49730304]
[1645836840727,0.37576509,39800.0,39786.0,0.49730304]
[1645836840927,0.37576509,39800.0,39786.0,0.19730304]
[1645836840928,0.26545412,39799.0,39786.0,0.19730304]
[1645836841129,0.0463,39798.0,39786.0,0.19730304]
[1645836841327,0.17043472,39793.0,39786.0,0.19730304]
[1645836841531,0.17043472,39793.0,39784.0,0.19730304]
[1645836841730,0.0463,39794.0,39784.0,0.19730304]
[1645836842729,0.23673216,39792.0,39784.0,0.19730304]
[1645836844375,0.20293129,39786.0,39781.0,0.01]
[1645836845178,0.0463,39794.0,39786.0,0.14797292]
[1645836845374,0.23498969,39790.0,39786.0,0.14797292]
[1645836845974,0.23498969,39790.0,39786.0,0.14843331]
[1645836846978,0.23498969,39790.0,39786.0,0.14797292]
[1645836847176,0.23498969,39790.0,39786.0,0.14843331]
[1645836848042,0.23498969,39790.0,39786.0,0.14797292]
[1645836848242,0.23498969,39790.0,39786.0,0.14843359]
[1645836848845,0.23498969,39790.0,39786.0,0.14343359]
[1645836849245,0.23498969,39790.0,39786.0,0.14297292]
[1645836849445,0.23498969,39790.0,39786.0,0.14343359]
[1645836850451,0.23498969,39790.0,39774.0,0.1029716]
[1645836850452,0.85,39788.0,39774.0,0.1029716]
[1645836850653,0.75181095,39787.0,39774.0,0.1029716]
[1645836850847,0.21212122,39786.0,39780.0,0.00184296]
[1645836851052,0.21212122,39786.0,39764.0,0.002177]
[1645836851055,0.15,39777.0,39764.0,0.002177]
[1645836851281,0.15,39777.0,39754.0,0.2591374]
[1645836851282,0.7658,39771.0,39766.0,0.097723]
[1645836851489,0.7658,39769.0,39766.0,0.097723]
[1645836851779,0.062937,39765.0,39750.0,2.5]
[1645836851978,0.28725683,39764.0,39750.0,2.5]
[1645836852179,0.28725683,39764.0,39760.0,0.19730304]
[1645836852180,0.0463,39764.0,39760.0,0.19730304]
[1645836852681,0.0463,39764.0,39761.0,0.375395]
[1645836852879,0.0463,39764.0,39758.0,0.19730304]
[1645836853083,0.0463,39764.0,39760.0,0.00036749]
[1645836853477,0.0463,39764.0,39758.0,0.19267053]
[1645836855019,0.0473,39764.0,39758.0,0.19267053]
[1645836855813,0.0473,39764.0,39753.0,0.0999]
[1645836856012,0.0473,39764.0,39751.0,0.45404874]
[1645836856013,0.45490845,39763.0,39751.0,0.45404874]
[1645836856214,0.45490845,39763.0,39751.0,0.00192821]
[1645836856215,0.3463,39762.0,39751.0,0.00192821]
[1645836856413,0.05200212,39762.0,39751.0,0.00192821]
[1645836856614,0.10200212,39762.0,39751.0,0.00192821]
[1645836856814,0.21886386,39758.0,39751.0,0.00192821]
[1645836857014,0.0463,39757.0,39751.0,0.00192821]
[1645836857215,0.001,39764.0,39751.0,0.00192821]
[1645836857216,0.0463,39756.0,39751.0,0.00192821]
[1645836857416,0.0463,39759.0,39755.0,0.19267053]
[1645836857614,0.0463,39761.0,39755.0,0.19267053]
[1645836857813,0.0463,39761.0,39751.0,0.01197821]
[1645836857814,0.0463,39761.0,39751.0,0.20464874]
[1645836858016,0.0463,39761.0,39751.0,0.19034338]
[1645836858218,0.22870104,39760.0,39751.0,0.19034338]
[1645836859667,0.22870104,39760.0,39751.0,0.00192821]
[1645836860269,0.27500104,39760.0,39751.0,0.00192821]
[1645836860571,0.00568641,39759.0,39751.0,0.00192821]
[1645836860874,0.85,39757.0,39750.0,2.49692821]
[1645836861069,0.85,39757.0,39750.0,2.49192821]
[1645836861070,0.17416386,39752.0,39750.0,2.49192821]
[1645836861471,0.0463,39751.0,39750.0,2.49192821]
[1645836861671,0.05198641,39751.0,39750.0,2.49192821]
[1645836862269,0.0463,39751.0,39750.0,2.49192821]
[1645836862528,0.05198641,39751.0,39750.0,2.48692821]
[1645836863329,0.0463,39751.0,39750.0,2.48692821]
[1645836863829,0.0413,39751.0,39750.0,2.48692821]
[1645836864429,0.04698641,39751.0,39750.0,2.48692821]
[1645836865732,0.04698641,39751.0,39750.0,2.35925309]
[1645836866178,0.0413,39751.0,39750.0,2.35925309]
[1645836866369,0.4438,39750.0,39743.0,0.0018431]
[1645836866574,0.4438,39750.0,39734.0,0.01005]
[1645836866575,0.00380056,39735.0,39734.0,0.01005]
[1645836866770,0.14840056,39735.0,39733.0,0.176176]
[1645836867169,0.19840056,39735.0,39733.0,0.176176]
[1645836867468,0.19840056,39735.0,39721.0,0.01]
[1645836867469,0.85,39733.0,39721.0,0.01]
[1645836867671,0.432051,39734.0,39721.0,0.01]
[1645836867672,0.3463,39732.0,39721.0,0.01]
[1645836867870,0.0463,39731.0,39721.0,0.01]
[1645836868069,0.0463,39730.0,39721.0,0.01]
[1645836868269,0.3463,39729.0,39721.0,0.01]
[1645836868471,0.6,39727.0,39718.0,0.10995]
[1645836868669,0.0463,39726.0,39718.0,0.10995]
[1645836868871,0.0463,39726.0,39718.0,0.01005]
[1645836868872,0.0463,39725.0,39718.0,0.01005]
[1645836869069,0.0463,39725.0,39717.0,0.18850384]
[1645836869271,0.0463,39725.0,39709.0,0.01007]
[1645836869472,0.0463,39725.0,39709.0,7e-05]
[1645836869773,0.0463,39725.0,39708.0,0.01007]
[1645836870025,0.0463,39725.0,39708.0,0.7658]
[1645836870221,0.0463,39725.0,39719.0,0.18841517]
[1645836870420,0.0463,39725.0,39715.0,0.69171517]
[1645836870621,0.0463,39725.0,39716.0,0.31007]
[1645836870821,0.0463,39725.0,39721.0,0.20581459]
[1645836871020,0.100945,39724.0,39721.0,0.20581459]
[1645836871222,0.100945,39724.0,39719.0,0.00044548]
[1645836871424,0.147245,39724.0,39719.0,0.00044548]
[1645836871621,0.0463,39724.0,39719.0,0.00044548]
[1645836872220,0.0463,39724.0,39721.0,0.19731744]
[1645836872419,0.0463,39730.0,39721.0,0.19731744]
[1645836872621,0.100945,39729.0,39721.0,0.19731744]
[1645836873328,0.001,39734.0,39725.0,0.18841517]
[1645836873668,0.001,39734.0,39730.0,0.22080838]
[1645836873866,0.100945,39733.0,39730.0,0.22080838]
[1645836874172,0.001,39734.0,39730.0,0.22080838]
[1645836874466,0.100945,39734.0,39730.0,0.22080838]
[1645836874866,0.00380056,39735.0,39730.0,0.22126925]
[1645836875067,0.100945,39734.0,39730.0,0.22126925]
[1645836875271,0.100945,39734.0,39701.0,0.68591334]
[1645836875272,0.8,39733.0,39701.0,0.68591334]
[1645836875469,0.4,39733.0,39722.0,0.1]
[1645836875669,0.001,39734.0,39712.0,0.5033]
[1645836875871,0.001,39734.0,39719.0,0.05]
[1645836876071,0.001,39734.0,39713.0,0.376249]
[1645836876072,0.001,39734.0,39714.0,0.15]
[1645836876274,0.001,39734.0,39719.0,0.39014678]
[1645836876471,0.00380056,39735.0,39719.0,1.15594678]
[1645836876774,0.00380056,39735.0,39719.0,0.501369]
[1645836876971,0.00380056,39735.0,39719.0,0.12512]
[1645836877170,0.00380056,39735.0,39719.0,0.052]
[1645836877434,0.00380056,39735.0,39719.0,0.102]
[1645836877638,0.00380056,39735.0,39720.0,0.02512]
[1645836877834,0.00380056,39735.0,39720.0,0.12512]
[1645836878035,0.75,39734.0,39713.0,0.376249]
[1645836878236,0.00380056,39735.0,39715.0,0.376249]
[1645836878536,0.20363388,39729.0,39720.0,0.125921]
[1645836878737,0.00380056,39735.0,39721.0,0.376249]
[1645836878937,0.00380056,39735.0,39720.0,0.125921]
[1645836879539,0.00380056,39735.0,39722.0,0.00046078]
[1645836879739,0.00034524,39729.0,39722.0,0.00046078]
[1645836879939,0.00034524,39729.0,39723.0,0.376249]
[1645836880140,0.00034524,39729.0,39723.0,0.401369]
[1645836880341,0.00034524,39729.0,39722.0,0.00046078]
[1645836880541,0.00380056,39735.0,39719.0,0.02512]
[1645836880941,0.00380056,39735.0,39714.0,0.5033]
[1645836881164,0.00034524,39728.0,39722.0,0.00045387]
[1645836881364,0.00034524,39728.0,39722.0,0.00024959]
[1645836881764,0.19261507,39730.0,39715.0,0.02512]
[1645836881968,0.19261507,39730.0,39717.0,0.02512]
[1645836882167,0.19261507,39730.0,39719.0,0.02512]
[1645836882565,0.01005,39733.0,39719.0,0.02512]
[1645836882765,0.10380056,39735.0,39719.0,0.088087]
[1645836882766,0.01005,39734.0,39719.0,0.088087]
[1645836883766,0.1759933,39728.0,39719.0,0.088087]
[1645836883966,0.1759933,39728.0,39716.0,0.376249]
[1645836884164,0.1759933,39728.0,39715.0,0.376249]
[1645836884366,0.1759933,39728.0,39720.0,0.00046067]
[1645836884568,0.00034633,39726.0,39720.0,0.00046067]
[1645836885425,0.1,39731.0,39721.0,0.376249]
[1645836885621,0.1,39731.0,39720.0,0.00046066]
[1645836885823,0.00034632,39726.0,39721.0,0.376249]
[1645836886023,0.00034632,39726.0,39720.0,0.00046066]
[1645836886222,0.00034632,39726.0,39721.0,0.376249]
[1645836886624,0.1,39731.0,39714.0,0.175935]
[1645836886822,0.1,39731.0,39727.0,0.0003691]
[1645836887824,0.8,39730.0,39706.0,0.01434648]
[1645836888026,1.20059495,39730.0,39720.0,0.00046068]
[1645836888223,1.20059495,39730.0,39709.0,0.0224238]
[1645836888224,0.85,39729.0,39709.0,0.0224238]
[1645836888425,0.85,39729.0,39706.0,0.01434648]
[1645836888426,0.85,39729.0,39714.0,0.125935]
[1645836888666,0.36296761,39726.0,39714.0,0.125935]
[1645836888871,0.36296761,39726.0,39711.0,0.0224238]
[1645836889073,0.30398026,39725.0,39710.0,0.062979]
[1645836889267,0.36296761,39726.0,39711.0,0.451369]
[1645836889467,0.36296761,39726.0,39711.0,0.05]
[1645836889666,0.36296761,39726.0,39711.0,0.1]
[1645836889870,0.17346579,39726.0,39712.0,0.376249]
[1645836890168,0.17346579,39726.0,39711.0,0.1]
[1645836890366,0.17346579,39726.0,39711.0,0.12512]
[1645836890566,0.17346579,39726.0,39711.0,0.1]
[1645836890768,0.17346579,39726.0,39712.0,0.376249]
[1645836890966,0.17346579,39726.0,39711.0,0.095]
[1645836891169,0.17346579,39726.0,39713.0,0.02512]
[1645836891368,0.17346579,39726.0,39714.0,0.0246804]
[1645836891369,0.1,39719.0,39714.0,0.0246804]
[1645836891573,0.57346579,39726.0,39706.0,0.26853786]
[1645836891768,0.59,39725.0,39707.0,0.376249]
[1645836891966,0.59,39725.0,39706.0,0.26853786]
[1645836891967,0.1,39719.0,39706.0,0.26853786]
[1645836892168,0.01007,39724.0,39707.0,0.401369]
[1645836892422,0.1694322,39719.0,39709.0,0.376249]
[1645836892618,0.16930005,39724.0,39711.0,0.02512]
[1645836892820,0.16930005,39724.0,39715.0,0.79092]
[1645836892821,0.01007,39724.0,39715.0,0.79092]
[1645836893019,0.01007,39724.0,39719.0,0.02512]
[1645836893218,0.01007,39724.0,39720.0,0.376249]
[1645836893519,0.01007,39724.0,39720.0,0.401369]
[1645836893717,0.01007,39724.0,39720.0,0.376249]
[1645836894119,0.00035739,39724.0,39720.0,0.376249]
[1645836894319,0.00035739,39724.0,39722.0,0.02512]
[1645836894518,0.00035739,39724.0,39723.0,0.401369]
[1645836894719,0.16027892,39726.0,39724.0,0.87522532]
[1645836894922,0.16027892,39726.0,39725.0,0.401369]
[1645836895118,0.00380056,39735.0,39725.0,0.401369]
[1645836895321,0.00380056,39735.0,39728.0,0.376249]
[1645836896568,0.00010714,39733.0,39728.0,0.376249]
[1645836896771,0.00380056,39735.0,39727.0,0.03607]
[1645836897369,0.00380056,39735.0,39730.0,0.376249]
[1645836897577,0.00380056,39735.0,39730.0,0.401369]
[1645836898072,0.00380056,39735.0,39731.0,0.02512]
[1645836898271,0.00380056,39735.0,39733.0,0.02512]
[1645836898468,0.00380056,39735.0,39734.0,0.401369]
[1645836898870,0.00380056,39735.0,39734.0,0.376249]
[1645836899269,0.00480056,39735.0,39734.0,0.401369]
[1645836899470,0.00480056,39735.0,39734.0,0.376249]
[1645836900122,0.00480056,39735.0,39734.0,0.401369]
[1645836900424,0.00480056,39735.0,39734.0,0.376249]
[1645836900620,0.00380056,39735.0,39734.0,0.376249]
[1645836901224,0.00480056,39735.0,39734.0,0.376249]
[1645836902421,0.10243539,39742.0,39730.0,0.1]
[1645836902620,0.10243539,39742.0,39730.0,0.05]
[1645836902621,0.00010705,39736.0,39730.0,0.05]
[1645836902823,0.00010705,39736.0,39731.0,0.376249]
[1645836903421,0.27611264,39742.0,39731.0,0.376249]
[1645836903674,0.00010705,39735.0,39729.0,0.05]
[1645836903873,0.00010705,39735.0,39729.0,0.376249]
[1645836904072,0.00010705,39735.0,39729.0,0.426249]
[1645836904670,0.27611264,39742.0,39729.0,0.426249]
[1645836904872,0.27611264,39742.0,39725.0,0.61259868]
[1645836904873,0.00010705,39734.0,39725.0,0.61259868]
[1645836905073,0.00010705,39734.0,39726.0,0.376249]
[1645836905273,0.00010705,39734.0,39724.0,0.20190532]
[1645836905673,0.10010705,39734.0,39724.0,0.20190532]
[1645836905875,0.1991579,39736.0,39724.0,0.20190532]
[1645836906076,0.1991579,39736.0,39724.0,0.00210532]
[1645836906375,0.00035667,39732.0,39724.0,0.00210532]
[1645836906574,0.00035667,39732.0,39725.0,0.376249]
[1645836906773,0.1991579,39736.0,39732.0,0.00011044]
[1645836906975,0.100945,39735.0,39732.0,0.00011044]
[1645836907175,0.1,39737.0,39732.0,0.00011044]
[1645836907614,0.100945,39736.0,39732.0,0.00011044]
[1645836907820,0.01005,39739.0,39732.0,0.00011044]
[1645836908017,0.5596,39740.0,39732.0,0.00011044]
[1645836909214,0.5596,39740.0,39732.0,0.00211044]
[1645836909613,0.100945,39739.0,39732.0,0.00211044]
[1645836909815,0.00010701,39738.0,39732.0,0.00211044]
[1645836910214,0.100945,39737.0,39732.0,0.00211044]
[1645836910416,0.00010701,39738.0,39732.0,0.00211044]
[1645836910619,0.00010701,39738.0,39732.0,0.00011044]
[1645836910814,0.5596,39740.0,39732.0,0.00011044]
[1645836911015,0.0003558,39736.0,39732.0,0.00011044]
[1645836911866,0.21183583,39738.0,39732.0,0.00011044]
[1645836912268,0.0003558,39736.0,39732.0,0.00011044]
[1645836913068,0.21183583,39738.0,39732.0,0.00011044]
[1645836913069,0.100945,39735.0,39732.0,0.00011044]
[1645836913667,0.0003558,39736.0,39732.0,0.00011044]
[1645836913867,0.100945,39735.0,39732.0,0.00011044]
[1645836914268,0.1,39734.0,39732.0,0.00011044]
[1645836914467,0.57287035,39738.0,39732.0,0.00011044]
[1645836914468,0.87585321,39738.0,39732.0,0.00011044]
[1645836914669,0.0003558,39735.0,39732.0,0.00011044]
[1645836915520,0.01005,39737.0,39732.0,0.00011044]
[1645836915721,0.11005,39737.0,39732.0,0.00011044]
[1645836915925,0.0003558,39735.0,39732.0,0.00011044]
[1645836916120,0.100945,39734.0,39732.0,0.00011044]
[1645836916521,0.1,39733.0,39732.0,0.00011044]
[1645836916921,0.200945,39733.0,39732.0,0.00011044]
[1645836917419,0.3628314,39733.0,39732.0,0.00011044]
[1645836920071,0.2618864,39733.0,39732.0,0.00011044]
[1645836920267,0.1618864,39733.0,39732.0,0.00011044]
[1645836920466,0.2628314,39733.0,39732.0,0.00011044]
[1645836921069,0.10033925,39734.0,39732.0,0.00011044]
[1645836921272,0.103945,39733.0,39732.0,0.00011044]
[1645836922427,0.100945,39733.0,39732.0,0.00011044]
[1645836923227,0.103945,39733.0,39732.0,0.00011044]
[1645836924028,0.003,39733.0,39732.0,0.00011044]
[1645836924227,0.103945,39733.0,39732.0,0.00011044]
[1645836924428,0.10030135,39734.0,39732.0,0.00011044]
[1645836924628,0.26209105,39734.0,39732.0,0.00011044]
[1645836925029,0.100945,39733.0,39732.0,0.00011044]
[1645836926182,0.1617897,39734.0,39732.0,0.37635944]
[1645836926378,0.1617897,39734.0,39732.0,0.00011044]
[1645836926776,0.1621455,39734.0,39732.0,0.00011044]
[1645836927375,0.1631455,39734.0,39732.0,0.37635944]
[1645836927574,0.1627897,39734.0,39733.0,0.376249]
[1645836927974,0.1627897,39734.0,39732.0,0.37635944]
[1645836928174,0.1627897,39734.0,39732.0,0.00033894]
[1645836928774,0.1627897,39734.0,39729.0,0.2783218]
[1645836928978,0.1627897,39734.0,39730.0,0.376249]
[1645836929177,0.79363539,39742.0,39735.0,0.05877802]
[1645836929178,0.00243539,39742.0,39735.0,0.05877802]
[1645836929379,0.00243539,39742.0,39738.0,0.7658]
[1645836929680,5.39e-06,39742.0,39741.0,0.01208607]
[1645836929921,5.39e-06,39742.0,39741.0,1.50215279]
[1645836930318,5.39e-06,39742.0,39741.0,1.52727279]
[1645836931319,0.19712661,39756.0,39741.0,1.52927279]
[1645836931521,0.23166554,39752.0,39746.0,0.376249]
[1645836931721,0.23166554,39752.0,39746.0,0.67796672]
[1645836931920,0.23166554,39752.0,39746.0,0.376249]
[1645836932519,0.00010732,39751.0,39746.0,0.376249]
[1645836933321,0.00110732,39751.0,39746.0,0.376249]
[1645836933521,0.001,39751.0,39746.0,0.676249]
[1645836933967,0.00035491,39750.0,39746.0,0.676249]
[1645836934767,0.21924227,39757.0,39746.0,1.442049]
[1645836934967,0.00035491,39750.0,39746.0,1.442049]
[1645836935167,0.00035491,39750.0,39747.0,0.0463]
[1645836935367,0.00035491,39750.0,39748.0,0.676249]
[1645836935566,0.00035491,39750.0,39749.0,0.676249]
[1645836935866,0.00141941,39756.0,39749.0,0.376249]
[1645836936071,0.76890164,39759.0,39751.0,0.376249]
[1645836936072,0.75885164,39759.0,39751.0,0.376249]
[1645836936271,0.75885164,39759.0,39753.0,0.38919045]
[1645836936272,0.00141941,39757.0,39753.0,0.38919045]
[1645836936469,0.00141941,39757.0,39754.0,0.05978043]
[1645836936668,0.00141941,39757.0,39755.0,0.376249]
[1645836936874,0.00141941,39757.0,39756.0,0.0463]
[1645836937067,0.001,39759.0,39756.0,0.422549]
[1645836937268,0.001,39757.0,39756.0,0.535456]
[1645836937526,0.001,39757.0,39756.0,0.585456]
[1645836937926,0.001,39757.0,39756.0,0.535456]
[1645836938227,0.001,39757.0,39756.0,0.0463]
[1645836938426,0.001,39757.0,39754.0,0.376249]
[1645836938625,0.001,39759.0,39753.0,0.0463]
[1645836938826,0.001,39759.0,39754.0,0.376249]
[1645836938827,0.00035491,39758.0,39754.0,0.376249]
[1645836939628,0.001,39759.0,39754.0,0.376249]
[1645836939827,0.00035491,39758.0,39754.0,0.376249]
[1645836940227,0.00035491,39758.0,39754.0,0.426249]
[1645836940829,0.001,39759.0,39754.0,0.376249]
[1645836941270,0.00135491,39758.0,39755.0,0.376249]
[1645836941474,0.00135491,39758.0,39756.0,0.376249]
[1645836941668,0.00135491,39758.0,39753.0,0.0463]
[1645836941868,0.00135491,39758.0,39754.0,0.376249]
[1645836942071,0.001,39758.0,39754.0,0.376249]
[1645836942670,0.00135491,39759.0,39754.0,0.376249]
[1645836942969,0.17212277,39765.0,39753.0,0.0463]
[1645836943170,0.17212277,39765.0,39754.0,0.376249]
[1645836943171,0.1,39760.0,39754.0,0.376249]
[1645836943370,0.1,39762.0,39754.0,0.377249]
[1645836944171,0.001,39764.0,39754.0,0.477249]
[1645836944372,0.001,39764.0,39758.0,0.376249]
[1645836944576,0.001,39766.0,39758.0,0.376249]
[1645836944577,0.001,39766.0,39760.0,0.79092]
[1645836944774,0.001,39766.0,39761.0,0.64517913]
[1645836945021,0.00241586,39766.0,39761.0,0.43797593]
[1645836945221,0.00241586,39766.0,39763.0,0.01369326]
[1645836945426,0.00241586,39766.0,39765.0,0.01419819]
[1645836945620,0.00241586,39766.0,39765.0,0.422549]
[1645836945820,0.00241586,39766.0,39765.0,0.522549]
[1645836946022,0.00110625,39766.0,39765.0,0.522549]
[1645836946824,0.001,39766.0,39765.0,0.522549]
[1645836950875,0.001,39766.0,39765.0,0.822549]
[1645836955322,0.001,39766.0,39765.0,0.823549]
[1645836955535,0.001,39766.0,39765.0,0.723549]
[1645836955726,0.101,39766.0,39765.0,0.001]
[1645836956588,0.101,39766.0,39758.0,0.3]
[1645836956789,0.22371457,39763.0,39759.0,0.376249]
[1645836957191,0.001,39766.0,39759.0,0.376249]
[1645836957390,0.001,39766.0,39760.0,0.3]
[1645836957589,0.001,39766.0,39761.0,0.376249]
[1645836957790,0.001,39766.0,39763.0,0.439142]
[1645836957988,0.00030353,39764.0,39763.0,0.375885]
[1645836959089,0.101,39766.0,39763.0,0.375885]
[1645836959287,0.00030355,39765.0,39763.0,0.375885]
[1645836959487,0.00030355,39765.0,39763.0,0.438778]
[1645836960125,0.001,39766.0,39763.0,0.438778]